fUST/lending_fUST_20250716
["ID","MTS","AMOUNT","RATE_DAILY","PERIOD"]
[372535363,1752675052252,-460.0,0.00019726,2]
[372535364,1752675052261,-460.0,0.00019726,2]
[372535365,1752675052270,-460.0,0.00019726,2]
[372535366,1752675052280,-460.0,0.00019726,2]
[372535367,1752675052289,-1038.85,0.00019726,2]
[372535368,1752675052300,-460.0,0.00019726,2]
[372535369,1752675052310,-455.04780188,0.00019726,2]
[372535370,1752675052320,-646.87,0.00019726,2]
[372535371,1752675052329,-460.0,0.00019726,2]
[372535372,1752675052338,-460.0,0.00019726,2]
[372535373,1752675052348,-648.95,0.00019726,2]
[372535374,1752675052357,-460.0,0.00019726,2]
[372535375,1752675052367,-460.0,0.00019726,2]
[372535376,1752675052376,-460.0,0.00019726,2]
[372535377,1752675052386,-460.0,0.00019726,2]
[372535378,1752675052395,-2968.08,0.00019726,2]
[372535379,1752675052407,-460.0,0.00019726,2]
[372535380,1752675052416,-222.37,0.00019726,2]
[372535381,1752675052426,-460.0,0.00019726,2]
[372535382,1752675052435,-923.78,0.00019726,2]
[372535383,1752675052445,-460.0,0.00019726,2]
[372535384,1752675052454,-2292.51,0.00019726,2]
[372535385,1752675052464,-460.0,0.00019726,2]
[372535386,1752675052473,-1040.79,0.00019726,2]
[372535387,1752675052483,-460.0,0.00019726,2]
[372535388,1752675052493,-460.0,0.00019726,2]
[372535389,1752675052503,-460.0,0.00019726,2]
[372535390,1752675052512,-2359.52,0.00019726,2]
[372535391,1752675052521,-460.0,0.00019726,2]
[372535392,1752675052531,-460.0,0.00019726,2]
[372535393,1752675052540,-460.0,0.00019726,2]
[372535394,1752675052549,-460.0,0.00019726,2]
[372535395,1752675052559,-461.39516006,0.00019726,2]
[372535396,1752675052568,-460.0,0.00019726,2]
[372535397,1752675052577,-460.0,0.00019726,2]
[372535398,1752675052587,-460.0,0.00019726,2]
[372535399,1752675052597,-460.0,0.00019726,2]
[372535400,1752675052606,-460.0,0.00019726,2]
[372535401,1752675052616,-460.0,0.00019726,2]
[372535402,1752675052625,-803.84,0.00019726,2]
[372535403,1752675052635,-460.0,0.00019726,2]
[372535404,1752675052645,-460.0,0.00019726,2]
[372535405,1752675052656,-631.22,0.00019726,2]
[372535406,1752675052666,-460.0,0.00019726,2]
[372535407,1752675052675,-7352.9,0.00019726,2]
[372535408,1752675052685,-460.0,0.00019726,2]
[372535409,1752675052694,-2668.44,0.00019726,2]
[372535410,1752675052704,-460.0,0.00019726,2]
[372535411,1752675052714,-500.0,0.00019726,2]
[372535412,1752675052724,-817.70006014,0.0001978,2]
[372535413,1752675052733,-56397.27796747,0.00019798,2]
[372535414,1752675052742,-151.0,0.000198,2]
[372535415,1752675052752,-151.0,0.000198,2]
[372535416,1752675052825,-151.0,0.000198,2]
[372535417,1752675052835,-151.0,0.000198,2]
[372535418,1752675052844,-334.7653306,0.000198,4]
[372535419,1752675052855,-1129.66672533,0.00019899,2]
[372535420,1752675052864,-151.0,0.000199,2]
[372535421,1752675052874,-151.0,0.000199,2]
[372535422,1752675052883,-3603.95160778,0.000199,2]
[372535423,1752675052892,-2562.09664745,0.00019915,2]
[372535424,1752675052904,-500.0,0.00019973,2]
[372535425,1752675052913,-500.0,0.00019973,2]
[372535426,1752675052923,-500.0,0.00019973,2]
[372535427,1752675052933,-500.0,0.00019973,2]
[372535428,1752675052943,-348.96960184,0.00019973,2]
[372535429,1752675052953,-500.0,0.00019973,2]
[372535430,1752675052963,-500.0,0.00019973,2]
[372535431,1752675052972,-500.0,0.00019973,2]
[372535432,1752675052982,-505.63930367,0.00019973,2]
[372535433,1752675052992,-500.0,0.00019973,2]
[372535434,1752675053002,-500.0,0.00019973,2]
[372535435,1752675053012,-487.68963169,0.00019973,2]
[372535436,1752675053021,-500.0,0.00019973,2]
[372535437,1752675053030,-500.0,0.00019973,2]
[372535438,1752675053040,-260.58499633,0.00019973,2]
[372535439,1752675053050,-504.32043466,0.00019973,2]
[372535440,1752675053059,-500.0,0.00019973,2]
[372535441,1752675053070,-100000.0,0.0001999,2]
[372535442,1752675053079,-151.0,0.0001999,2]
[372535443,1752675053089,-151.0,0.0001999,2]
[372535444,1752675053099,-28964.43484883,0.00019998,2]
[372535445,1752675053435,-460.0,0.00019178,2]
[372535446,1752675053444,-460.0,0.00019178,2]
[372535447,1752675053454,-247.42,0.00019452,2]
[372535448,1752675053470,-460.0,0.00019178,2]
[372535449,1752675053480,-212.58,0.00019452,2]
[372535450,1752675053490,-460.0,0.00019452,2]
[372535451,1752675053500,-6890.82,0.00019998,2]
[372535452,1752675053512,-440.0,0.00019998,2]
[372535453,1752675053831,-460.0,0.00019178,2]
[372535454,1752675053841,-124.76673837,0.00019178,2]
[372535455,1752675053853,-335.23326163,0.00019178,2]
[372535456,1752675053863,-460.0,0.00019178,2]
[372535457,1752675053874,-82.48254233,0.00019178,2]
[372535458,1752675054225,-301.53775025,0.00019178,2]
[372535459,1752675054836,-75.97970742,0.00019178,2]
[372535460,1752675054845,-500.0,0.00019178,2]
[372535461,1752675054855,-460.24018622,0.00019178,2]
[372535462,1752675054929,-649.65,0.00019178,2]
[372535463,1752675054940,-460.0,0.00019178,2]
[372535464,1752675054951,-28380.07001757,0.00019178,2]
[372535465,1752675054960,-460.0,0.00019452,2]
[372535466,1752675054970,-649.65,0.00019452,2]
[372535467,1752675054980,-460.0,0.00019726,2]
[372535468,1752675054990,-649.65,0.00019726,2]
[372535469,1752675055000,-151.0,0.0001999,2]
[372535470,1752675055009,-4342.44933352,0.00019998,2]
[372535471,1752675055023,-2793.52905098,0.00019998,2]
[372535472,1752675055035,-437.19794125,0.00019998,2]
[372535473,1752675055046,-3193.09999998,0.00019998,2]
[372535474,1752675156735,10000.0,0.00018562,2]
[372535475,1752675156947,421.6962264,0.00018562,2]
[372535476,1752675159086,712.8898603,0.00018176,2]
[372535477,1752675176718,264.65610389,0.000189,2]
[372535478,1752675193440,780.81388314,0.00018574,2]
[372535479,1752675193466,119.18611686,0.00018574,2]
[372535480,1752675275333,315.14611352,0.00018603,2]
[372535481,1752675313662,296.840559,0.00013699,2]
[372535483,1752675321428,479.09387,0.00027397,120]
[372535486,1752675478332,1983.84832257,0.000189,2]
[372535489,1752675577516,189.08766812,0.00018506,2]
[372535490,1752675591768,900.0,0.00018574,2]
[372535491,1752675608182,330.90209,0.0001815,2]
[372535494,1752675779634,1322.56554838,0.000189,2]
[372535495,1752675840618,1005.2034789,0.00018246,2]
[372535496,1752675847225,2562.09664745,0.00018832,2]
[372535497,1752675868566,8767.1456749,0.00018272,2]
[372535498,1752675899108,302.84859387,0.000189,2]
[372535499,1752675937258,1905.12918643,0.00018119,2]
[372535500,1752675937283,276.51181087,0.00018119,2]
[372535501,1752675946839,826.9930064,0.00018119,2]
[372535502,1752676080980,881.71036558,0.000189,2]
[372535503,1752676120459,579.85375111,0.000149,2]
[372535504,1752676120612,1000.0,0.0001,2]
[372535505,1752676124130,9094.07003722,0.00015,2]
[372535506,1752676125081,210.43655035,0.00016,2]
[372535507,1752676126506,418.4724359,0.0001,2]
[372535515,1752676178610,6711.95204257,0.00018127,2]
[372535516,1752676178636,18188.04795743,0.00018127,2]
[372535517,1752676202898,300.0,0.00018999,2]
[372535518,1752676206777,1200.0,0.00018999,2]
[372535563,1752676238346,-23434.99656239,0.00019,2]
[372535564,1752676238357,-228.85966732,0.00019016,2]
[372535565,1752676238367,-1042.26176706,0.00019078,2]
[372535566,1752676238378,-1279.84421399,0.00019078,2]
[372535567,1752676238388,-7156.81965386,0.00019078,2]
[372535568,1752676238398,-500.0,0.00019173,2]
[372535569,1752676238408,-178.87661116,0.00019173,2]
[372535570,1752676238423,-500.0,0.00019173,2]
[372535571,1752676238433,-500.0,0.00019173,2]
[372535572,1752676238443,-500.0,0.00019173,2]
[372535573,1752676238453,-203.05209817,0.00019177,2]
[372535574,1752676238464,-209.86386935,0.00019178,2]
[372535575,1752676238474,-460.0,0.00019178,2]
[372535576,1752676238484,-460.0,0.00019178,2]
[372535577,1752676238494,-460.0,0.00019178,2]
[372535578,1752676238503,-460.0,0.00019178,2]
[372535579,1752676238513,-460.0,0.00019178,2]
[372535580,1752676238523,-460.0,0.00019178,2]
[372535581,1752676238533,-460.0,0.00019178,2]
[372535582,1752676238542,-460.0,0.00019178,2]
[372535583,1752676238552,-269.40828402,0.00019178,2]
[372535584,1752676238561,-460.0,0.00019178,2]
[372535585,1752676238572,-460.0,0.00019178,2]
[372535586,1752676238583,-460.0,0.00019178,2]
[372535587,1752676238593,-465.46483809,0.00019178,2]
[372535588,1752676238608,-460.0,0.00019178,2]
[372535589,1752676238618,-201.57063895,0.00019178,2]
[372535590,1752676238627,-460.0,0.00019178,2]
[372535591,1752676238638,-460.0,0.00019178,2]
[372535592,1752676238648,-558.35008124,0.00019178,2]
[372535593,1752676238658,-460.0,0.00019178,2]
[372535594,1752676238797,-460.0,0.00019178,2]
[372535595,1752676238807,-460.0,0.00019178,2]
[372535596,1752676238816,-460.0,0.00019178,2]
[372535597,1752676238825,-467.34587506,0.00019178,2]
[372535598,1752676238835,-460.0,0.00019178,2]
[372535599,1752676238844,-460.0,0.00019178,2]
[372535600,1752676238854,-460.0,0.00019178,2]
[372535601,1752676238863,-1000.0,0.00019178,2]
[372535602,1752676238872,-460.0,0.00019178,2]
[372535603,1752676238882,-460.0,0.00019178,2]
[372535604,1752676238891,-460.0,0.00019178,2]
[372535605,1752676238901,-460.0,0.00019178,2]
[372535606,1752676238912,-460.0,0.00019178,2]
[372535607,1752676238922,-460.0,0.00019178,2]
[372535608,1752676238936,-460.0,0.00019178,2]
[372535609,1752676238946,-460.0,0.00019178,2]
[372535610,1752676238955,-460.0,0.00019178,2]
[372535611,1752676238965,-415.06581862,0.00019178,2]
[372535612,1752676238974,-460.0,0.00019178,2]
[372535613,1752676238983,-277.66712429,0.00019178,2]
[372535614,1752676238993,-460.0,0.00019178,2]
[372535615,1752676239002,-499.02,0.00019178,2]
[372535616,1752676239012,-460.47038451,0.00019178,2]
[372535617,1752676239022,-553.23623654,0.00019178,2]
[372535618,1752676239031,-460.0,0.00019178,2]
[372535619,1752676239041,-460.0,0.00019178,2]
[372535620,1752676239051,-460.0,0.00019178,2]
[372535621,1752676239062,-460.0,0.00019178,2]
[372535622,1752676239072,-460.0,0.00019178,2]
[372535623,1752676239081,-460.0,0.00019178,2]
[372535624,1752676239092,-525.39377751,0.00019178,2]
[372535625,1752676239103,-460.0,0.00019178,2]
[372535626,1752676239113,-460.0,0.00019178,2]
[372535627,1752676239123,-460.0,0.00019178,2]
[372535628,1752676239133,-460.0,0.00019178,2]
[372535629,1752676239144,-460.0,0.00019178,2]
[372535630,1752676239154,-460.0,0.00019178,2]
[372535631,1752676239167,-500.0,0.00019178,2]
[372535632,1752676239177,-500.0,0.00019178,2]
[372535633,1752676239187,-500.0,0.00019178,2]
[372535634,1752676239197,-500.0,0.00019178,2]
[372535635,1752676239207,-162.72813508,0.00019178,2]
[372535636,1752676239218,-460.0,0.00019178,2]
[372535637,1752676239228,-460.0,0.00019178,2]
[372535638,1752676239239,-460.0,0.00019178,2]
[372535639,1752676239248,-470.66149447,0.00019178,2]
[372535640,1752676239259,-460.0,0.00019178,2]
[372535641,1752676239268,-287.29681853,0.00019178,2]
[372535642,1752676239278,-460.0,0.00019178,2]
[372535643,1752676239288,-460.0,0.00019178,2]
[372535644,1752676239297,-460.73990312,0.00019178,2]
[372535645,1752676239307,-504.79105837,0.00019178,2]
[372535646,1752676239318,-460.0,0.00019178,2]
[372535647,1752676239328,-460.0,0.00019178,2]
[372535648,1752676239337,-460.0,0.00019178,2]
[372535649,1752676239348,-460.0,0.00019178,2]
[372535650,1752676239358,-601.94,0.00019178,2]
[372535651,1752676239367,-460.0,0.00019178,2]
[372535652,1752676239377,-460.0,0.00019178,2]
[372535653,1752676239387,-460.0,0.00019178,2]
[372535654,1752676239397,-460.0,0.00019178,2]
[372535655,1752676239407,-465.59178409,0.00019178,2]
[372535656,1752676239420,-460.0,0.00019178,2]
[372535657,1752676239430,-460.0,0.00019178,2]
[372535658,1752676239440,-507.25011985,0.00019178,2]
[372535659,1752676239450,-460.0,0.00019178,2]
[372535660,1752676239459,-460.0,0.00019178,2]
[372535661,1752676239469,-460.0,0.00019178,2]
[372535662,1752676239479,-460.0,0.00019178,2]
[372535663,1752676239489,-460.0,0.00019178,2]
[372535664,1752676239499,-460.0,0.00019178,2]
[372535665,1752676239509,-460.0,0.00019178,2]
[372535666,1752676239519,-460.0,0.00019178,2]
[372535667,1752676239529,-460.0,0.00019178,2]
[372535668,1752676239539,-460.0,0.00019178,2]
[372535669,1752676239550,-460.0,0.00019178,2]
[372535670,1752676239559,-460.0,0.00019178,2]
[372535671,1752676239569,-460.0,0.00019178,2]
[372535672,1752676239579,-460.0,0.00019178,2]
[372535673,1752676239589,-460.0,0.00019178,2]
[372535674,1752676239600,-460.0,0.00019178,2]
[372535675,1752676239610,-460.0,0.00019178,2]
[372535676,1752676239624,-460.0,0.00019178,2]
[372535677,1752676239633,-590.9613605,0.00019178,2]
[372535678,1752676239644,-460.0,0.00019178,2]
[372535679,1752676239654,-460.0,0.00019178,2]
[372535680,1752676239664,-460.0,0.00019178,2]
[372535681,1752676239674,-460.0,0.00019178,2]
[372535682,1752676239683,-460.0,0.00019178,2]
[372535683,1752676239694,-460.0,0.00019178,2]
[372535684,1752676239704,-460.0,0.00019178,2]
[372535685,1752676239714,-460.56559248,0.00019178,2]
[372535686,1752676239723,-460.0,0.00019178,2]
[372535687,1752676239732,-460.0,0.00019178,2]
[372535688,1752676239742,-460.0,0.00019178,2]
[372535689,1752676239751,-460.0,0.00019178,2]
[372535690,1752676239761,-707.02,0.00019178,2]
[372535691,1752676239770,-460.0,0.00019178,2]
[372535692,1752676239780,-460.0,0.00019178,2]
[372535695,1752676239789,-460.0,0.00019178,2]
[372535697,1752676239798,-460.0,0.00019178,2]
[372535699,1752676239807,-460.0,0.00019178,2]
[372535700,1752676239817,-460.0,0.00019178,2]
[372535701,1752676239826,-460.0,0.00019178,2]
[372535702,1752676239835,-178.81779799,0.00019178,2]
[372535703,1752676239845,-460.0,0.00019178,2]
[372535704,1752676239854,-460.0,0.00019178,2]
[372535705,1752676239863,-460.0,0.00019178,2]
[372535706,1752676239873,-460.0,0.00019178,2]
[372535707,1752676239883,-460.0,0.00019178,2]
[372535708,1752676239892,-460.0,0.00019178,2]
[372535709,1752676239902,-460.0,0.00019178,2]
[372535710,1752676239913,-460.0,0.00019178,2]
[372535711,1752676239923,-465.24665481,0.00019178,2]
[372535712,1752676239932,-460.0,0.00019178,2]
[372535713,1752676239942,-460.0,0.00019178,2]
[372535714,1752676239951,-460.0,0.00019178,2]
[372535715,1752676239961,-460.0,0.00019178,2]
[372535716,1752676239970,-460.0,0.00019178,2]
[372535717,1752676239979,-555.83,0.00019178,2]
[372535718,1752676239989,-460.0,0.00019178,2]
[372535719,1752676239998,-460.0,0.00019178,2]
[372535720,1752676240008,-460.0,0.00019178,2]
[372535721,1752676240017,-460.0,0.00019178,2]
[372535722,1752676240026,-460.0,0.00019178,2]
[372535723,1752676240036,-460.0,0.00019178,2]
[372535724,1752676240045,-460.0,0.00019178,2]
[372535725,1752676240055,-460.0,0.00019178,2]
[372535726,1752676240064,-460.0,0.00019178,2]
[372535727,1752676240073,-460.0,0.00019178,2]
[372535728,1752676240083,-500.0,0.00019178,2]
[372535729,1752676240092,-460.0,0.00019178,2]
[372535730,1752676240102,-460.0,0.00019178,2]
[372535731,1752676240111,-460.0,0.00019178,2]
[372535732,1752676240120,-460.0,0.00019178,2]
[372535733,1752676240130,-460.0,0.00019178,2]
[372535734,1752676240139,-500.0,0.00019178,2]
[372535735,1752676240148,-500.0,0.00019178,2]
[372535736,1752676240157,-500.0,0.00019178,2]
[372535737,1752676240168,-500.0,0.00019178,2]
[372535738,1752676240252,-500.0,0.00019178,2]
[372535739,1752676240262,-500.0,0.00019178,2]
[372535740,1752676240271,-500.0,0.00019178,2]
[372535741,1752676240281,-302.77690754,0.00019178,2]
[372535742,1752676240291,-460.0,0.00019178,2]
[372535743,1752676240301,-460.0,0.00019178,2]
[372535744,1752676240310,-462.66237575,0.00019178,2]
[372535745,1752676240322,-460.0,0.00019178,2]
[372535746,1752676240336,-460.0,0.00019178,2]
[372535747,1752676240345,-460.0,0.00019178,2]
[372535748,1752676240354,-460.0,0.00019178,2]
[372535749,1752676240364,-460.0,0.00019178,2]
[372535750,1752676240373,-1346.54,0.00019178,2]
[372535751,1752676240383,-460.0,0.00019178,2]
[372535752,1752676240392,-460.0,0.00019178,2]
[372535753,1752676240402,-460.0,0.00019178,2]
[372535754,1752676240412,-460.0,0.00019178,2]
[372535755,1752676240422,-460.0,0.00019178,2]
[372535756,1752676240431,-460.0,0.00019178,2]
[372535757,1752676240440,-460.0,0.00019178,2]
[372535758,1752676240449,-460.0,0.00019178,2]
[372535761,1752676240469,-460.0,0.00019178,2]
[372535764,1752676240480,-460.0,0.00019178,2]
[372535765,1752676240489,-460.0,0.00019178,2]
[372535766,1752676240499,-460.0,0.00019178,2]
[372535767,1752676240508,-460.0,0.00019178,2]
[372535768,1752676240518,-460.0,0.00019178,2]
[372535769,1752676240528,-460.0,0.00019178,2]
[372535770,1752676240537,-460.0,0.00019178,2]
[372535771,1752676240547,-460.0,0.00019178,2]
[372535772,1752676240557,-460.99167815,0.00019178,2]
[372535773,1752676240567,-460.0,0.00019178,2]
[372535774,1752676240577,-460.0,0.00019178,2]
[372535775,1752676240586,-460.0,0.00019178,2]
[372535776,1752676240597,-460.0,0.00019178,2]
[372535777,1752676240607,-460.0,0.00019178,2]
[372535778,1752676240619,-460.0,0.00019178,2]
[372535779,1752676240628,-460.0,0.00019178,2]
[372535780,1752676240639,-1141.08,0.00019178,2]
[372535781,1752676240649,-460.0,0.00019178,2]
[372535782,1752676240659,-460.0,0.00019178,2]
[372535783,1752676240673,-460.0,0.00019178,2]
[372535784,1752676240683,-460.0,0.00019178,2]
[372535785,1752676240694,-460.0,0.00019178,2]
[372535786,1752676240704,-460.0,0.00019178,2]
[372535787,1752676240714,-460.0,0.00019178,2]
[372535788,1752676240724,-491.52768805,0.00019178,2]
[372535789,1752676240734,-460.0,0.00019178,2]
[372535790,1752676240744,-460.0,0.00019178,2]
[372535791,1752676240754,-460.0,0.00019178,2]
[372535792,1752676240765,-460.0,0.00019178,2]
[372535793,1752676240775,-460.0,0.00019178,2]
[372535795,1752676240785,-460.0,0.00019178,2]
[372535797,1752676240796,-460.0,0.00019178,2]
[372535799,1752676240806,-460.0,0.00019178,2]
[372535801,1752676240816,-460.0,0.00019178,2]
[372535803,1752676240826,-1046.07,0.00019178,2]
[372535805,1752676240836,-460.0,0.00019178,2]
[372535807,1752676240846,-460.0,0.00019178,2]
[372535810,1752676240856,-460.0,0.00019178,2]
[372535812,1752676240867,-460.0,0.00019178,2]
[372535814,1752676240877,-460.0,0.00019178,2]
[372535816,1752676240887,-460.55266703,0.00019178,2]
[372535818,1752676240897,-462.96068572,0.00019178,2]
[372535820,1752676240908,-460.0,0.00019178,2]
[372535822,1752676240920,-460.0,0.00019178,2]
[372535824,1752676240930,-1186.96,0.00019178,2]
[372535826,1752676240940,-460.0,0.00019178,2]
[372535828,1752676240951,-460.0,0.00019178,2]
[372535830,1752676240961,-1245.0,0.00019178,2]
[372535832,1752676240971,-686.03,0.00019178,2]
[372535834,1752676240982,-462.14548734,0.00019178,2]
[372535836,1752676240991,-460.0,0.00019178,2]
[372535838,1752676241001,-460.0,0.00019178,2]
[372535840,1752676241011,-460.0,0.00019178,2]
[372535842,1752676241021,-460.0,0.00019178,2]
[372535844,1752676241031,-460.0,0.00019178,2]
[372535846,1752676241041,-448.83137158,0.00019178,2]
[372535848,1752676241050,-460.0,0.00019178,2]
[372535850,1752676241060,-462.60533867,0.00019178,2]
[372535852,1752676241070,-460.0,0.00019178,2]
[372535854,1752676241080,-460.0,0.00019178,2]
[372535856,1752676241090,-460.0,0.00019178,2]
[372535858,1752676241100,-460.0,0.00019178,2]
[372535860,1752676241110,-460.0,0.00019178,2]
[372535862,1752676241120,-460.0,0.00019178,2]
[372535864,1752676241130,-460.0,0.00019178,2]
[372535866,1752676241139,-460.0,0.00019178,2]
[372535868,1752676241149,-460.0,0.00019178,2]
[372535870,1752676241158,-460.0,0.00019178,2]
[372535872,1752676241169,-460.0,0.00019178,2]
[372535874,1752676241179,-460.0,0.00019178,2]
[372535876,1752676241189,-460.0,0.00019178,2]
[372535878,1752676241199,-460.0,0.00019178,2]
[372535881,1752676241208,-330.61426934,0.00019178,2]
[372535883,1752676241218,-539.79109942,0.00019178,2]
[372535885,1752676241227,-460.0,0.00019178,2]
[372535887,1752676241237,-460.0,0.00019178,2]
[372535888,1752676241246,-460.0,0.00019178,2]
[372535889,1752676241256,-460.0,0.00019178,2]
[372535890,1752676241266,-460.0,0.00019178,2]
[372535891,1752676241277,-460.0,0.00019178,2]
[372535892,1752676241287,-460.0,0.00019178,2]
[372535893,1752676241297,-460.0,0.00019178,2]
[372535894,1752676241308,-460.0,0.00019178,2]
[372535895,1752676241318,-460.0,0.00019178,2]
[372535896,1752676241328,-460.0,0.00019178,2]
[372535897,1752676241338,-460.0,0.00019178,2]
[372535898,1752676241347,-460.0,0.00019178,2]
[372535900,1752676241356,-460.0,0.00019178,2]
[372535901,1752676241366,-460.0,0.00019178,2]
[372535902,1752676241375,-460.0,0.00019178,2]
[372535903,1752676241385,-460.0,0.00019178,2]
[372535904,1752676241395,-460.0,0.00019178,2]
[372535905,1752676241405,-460.0,0.00019178,2]
[372535906,1752676241417,-460.0,0.00019178,2]
[372535907,1752676241427,-460.0,0.00019178,2]
[372535908,1752676241437,-460.0,0.00019178,2]
[372535910,1752676241446,-461.10771503,0.00019178,2]
[372535912,1752676241455,-460.35159422,0.00019178,2]
[372535914,1752676241465,-460.0,0.00019178,2]
[372535915,1752676241475,-460.0,0.00019178,2]
[372535916,1752676241485,-460.0,0.00019178,2]
[372535917,1752676241495,-460.0,0.00019178,2]
[372535918,1752676241504,-460.0,0.00019178,2]
[372535919,1752676241514,-460.0,0.00019178,2]
[372535920,1752676241523,-460.0,0.00019178,2]
[372535921,1752676241537,-460.0,0.00019178,2]
[372535922,1752676241547,-460.0,0.00019178,2]
[372535924,1752676241655,-460.0,0.00019178,2]
[372535925,1752676241665,-460.0,0.00019178,2]
[372535926,1752676241675,-460.0,0.00019178,2]
[372535927,1752676241685,-460.0,0.00019178,2]
[372535928,1752676241695,-460.0,0.00019178,2]
[372535929,1752676241706,-460.0,0.00019178,2]
[372535930,1752676241715,-460.0,0.00019178,2]
[372535931,1752676241725,-501.32,0.00019178,2]
[372535932,1752676241734,-460.0,0.00019178,2]
[372535933,1752676241744,-460.0,0.00019178,2]
[372535934,1752676241753,-460.0,0.00019178,2]
[372535935,1752676241762,-460.0,0.00019178,2]
[372535936,1752676241772,-460.65488607,0.00019178,2]
[372535937,1752676241782,-460.0,0.00019178,2]
[372535938,1752676241792,-460.0,0.00019178,2]
[372535939,1752676241801,-597.84875238,0.00019178,2]
[372535940,1752676241811,-460.0,0.00019178,2]
[372535941,1752676241820,-460.0,0.00019178,2]
[372535942,1752676241829,-460.0,0.00019178,2]
[372535943,1752676241838,-460.0,0.00019178,2]
[372535944,1752676241847,-460.0,0.00019178,2]
[372535945,1752676241857,-460.0,0.00019178,2]
[372535946,1752676241866,-389.01218635,0.00019178,2]
[372535947,1752676241875,-460.0,0.00019178,2]
[372535948,1752676241884,-500.0,0.00019178,2]
[372535949,1752676241893,-460.0,0.00019178,2]
[372535950,1752676241902,-526.04,0.00019178,2]
[372535951,1752676241911,-608.81,0.00019178,2]
[372535952,1752676241922,-334.61904294,0.00019178,2]
[372535953,1752676241931,-460.0,0.00019178,2]
[372535954,1752676241941,-460.0,0.00019178,2]
[372535955,1752676241950,-460.0,0.00019178,2]
[372535956,1752676241960,-460.0,0.00019178,2]
[372535957,1752676241970,-460.0,0.00019178,2]
[372535958,1752676241979,-460.0,0.00019178,2]
[372535959,1752676241988,-460.0,0.00019178,2]
[372535960,1752676241997,-460.0,0.00019178,2]
[372535961,1752676242007,-1161.63,0.00019178,2]
[372535962,1752676242016,-460.0,0.00019178,2]
[372535963,1752676242026,-3269.49,0.00019178,2]
[372535964,1752676242036,-460.0,0.00019178,2]
[372535965,1752676242046,-765.32,0.00019178,2]
[372535966,1752676242055,-460.0,0.00019178,2]
[372535967,1752676242065,-460.0,0.00019178,2]
[372535968,1752676242075,-460.0,0.00019178,2]
[372535969,1752676242085,-460.0,0.00019178,2]
[372535970,1752676242095,-460.0,0.00019178,2]
[372535971,1752676242105,-460.0,0.00019178,2]
[372535972,1752676242115,-460.0,0.00019178,2]
[372535973,1752676242125,-460.0,0.00019178,2]
[372535974,1752676242134,-460.0,0.00019178,2]
[372535975,1752676242144,-460.0,0.00019178,2]
[372535976,1752676242153,-384.23310567,0.00019178,2]
[372535977,1752676242163,-1525.54,0.00019178,2]
[372535978,1752676242173,-460.0,0.00019178,2]
[372535979,1752676242183,-460.0,0.00019178,2]
[372535980,1752676242193,-460.0,0.00019178,2]
[372535981,1752676242204,-460.0,0.00019178,2]